bitfinex-derivatives/quotes_SOLF0:USTF0_20251208
["timestamp","ask_amount","ask_price","bid_price","bid_amount"]
[1765237248763,5.65812556,133.29,133.27,0.04809612]
[1765237248963,3.27501484,133.3,133.27,0.04809612]
[1765237249459,3.27501484,133.3,133.27,6.80039612]
[1765237250456,0.05501484,133.3,133.27,6.80039612]
[1765237252262,0.05501484,133.3,133.28,6.7519]
[1765237252560,0.05501484,133.3,133.29,63.8]
[1765237254462,0.05501484,133.3,133.29,182.8]
[1765237254858,3.18,133.33,133.29,182.8]
[1765237254859,3.18,133.35,133.3,105.0165]
[1765237255164,3.18,133.35,133.31,1.69345399]
[1765237255364,3.18,133.35,133.32,63.8]
[1765237256261,3.18,133.35,133.32,63.84790254]
[1765237256857,4.87345399,133.35,133.32,63.84790254]
[1765237257166,3.18,133.36,133.32,63.84790254]
[1765237257362,5.65250287,133.35,133.32,63.84790254]
[1765237257667,3.18,133.36,133.32,63.84790254]
[1765237258672,3.18,133.36,133.32,70.59770254]
[1765237260369,3.18,133.36,133.32,63.84790254]
[1765237260560,3.18,133.34,133.32,63.84790254]
[1765237261258,3.18,133.34,133.32,0.04790254]
[1765237261466,3.18,133.37,133.32,0.04790254]
[1765237261665,3.18,133.35,133.32,0.04790254]
[1765237262665,3.18,133.33,133.32,0.04790254]
[1765237262871,8.83630722,133.33,133.32,0.04790254]
[1765237263066,3.18,133.32,133.27,6.7523]
[1765237263370,3.18,133.3,133.24,168.8406]
[1765237264071,0.05119247,133.28,133.26,0.05188856]
[1765237264258,3.23119247,133.28,133.26,0.05188856]
[1765237267364,3.38,133.26,133.23,6.7545]
[1765237268270,3.38,133.26,133.23,6.80871024]
[1765237269373,3.38,133.26,133.23,0.05421024]
[1765237280081,8.76347366,133.25,133.23,0.05421024]
[1765237280273,3.15000858,133.25,133.23,0.05421024]
[1765237287185,5.66489763,133.24,133.23,0.05421024]
[1765237287385,3.1,133.23,133.18,119.0]
[1765237287683,3.1,133.23,133.14,366.63569004]
[1765237287684,3.1,133.21,133.16,6.7579]
[1765237287891,3.1,133.19,133.15,63.82]
[1765237288484,3.1,133.17,133.16,0.05688414]
[1765237290288,0.05511466,133.18,133.16,0.05688414]
[1765237290990,0.05511466,133.18,133.16,6.81488414]
[1765237291291,0.05511466,133.18,133.16,9.45792778]
[1765237292081,0.05511466,133.18,133.16,2.69992778]
[1765237292277,0.05511466,133.18,133.16,0.05688414]
[1765237292482,3.15511466,133.18,133.16,0.05688414]
[1765237292894,0.05511466,133.18,133.16,0.05688414]
[1765237295781,0.05511466,133.18,133.16,9.45792778]
[1765237297096,0.05511466,133.18,133.16,128.45792778]
[1765237297298,0.05511466,133.18,133.16,9.45792778]
[1765237298691,0.05511466,133.18,133.16,6.81488414]
[1765237302107,0.05511466,133.18,133.16,0.05688414]
[1765237302113,3.15511466,133.18,133.16,0.05688414]
[1765237304104,0.05511466,133.18,133.16,0.05688414]
[1765237304306,5.66775522,133.21,133.16,2.69992778]
[1765237304614,3.1,133.21,133.16,0.05688414]
[1765237304814,3.1,133.19,133.16,0.05688414]
[1765237305014,3.1,133.19,133.15,63.82]
[1765237305317,0.05444862,133.18,133.16,0.0567117]
[1765237308014,0.05444862,133.18,133.16,9.45775534]
[1765237309418,0.05444862,133.18,133.16,128.45775534]
[1765237310819,3.30444862,133.18,133.16,125.8147117]
[1765237311120,0.05444862,133.18,133.16,125.8147117]
[1765237314910,3.30444862,133.18,133.16,125.8147117]
[1765237315315,0.05444862,133.18,133.16,125.8147117]
[1765237321517,0.05444862,133.18,133.16,128.45775534]
[1765237322429,0.05444862,133.18,133.16,125.8147117]
[1765237322625,3.30444862,133.18,133.16,182.8967117]
[1765237324730,8.9217837,133.17,133.16,182.8967117]
[1765237324931,8.9217837,133.17,133.16,63.8967117]
[1765237325930,5.6717837,133.17,133.16,63.8967117]
[1765237326436,0.05444862,133.18,133.17,6.7577]
[1765237326725,5.72757755,133.18,133.17,6.7577]
[1765237329837,0.05444862,133.18,133.17,125.7577]
[1765237333242,0.05444862,133.18,133.17,6.7577]
[1765237336345,0.05444862,133.18,133.17,125.7577]
[1765237337336,5.73553326,133.18,133.17,125.7577]
[1765237339836,0.05444862,133.18,133.17,125.7577]
[1765237341342,6.94085218,133.22,133.2,8.44837595]
[1765237341641,10.20085218,133.23,133.21,63.84]
[1765237341942,5.68224377,133.22,133.21,63.84]
[1765237346344,5.68224377,133.22,133.21,182.84]
[1765237354245,8.94224377,133.22,133.21,182.84]
[1765237354553,8.94224377,133.22,133.21,119.0]
[1765237354859,3.26,133.21,133.2,0.05361963]
[1765237355045,8.94224377,133.21,133.2,0.05361963]
[1765237357450,3.26,133.2,133.19,67.63450239]
[1765237357651,15.88309595,133.2,133.19,67.63450239]
[1765237357856,21.12934743,133.2,133.19,67.63450239]
[1765237358157,21.12934743,133.2,133.19,60.87800239]
[1765237358744,15.88309595,133.2,133.19,60.87800239]
[1765237358950,3.26,133.19,133.18,6.81437547]
[1765237359258,8.94224377,133.19,133.18,6.81437547]
[1765237360156,5.68224377,133.19,133.18,6.81437547]
[1765237364063,8.94224377,133.19,133.18,6.81437547]
[1765237366469,5.68224377,133.19,133.18,6.81437547]
[1765237368372,5.68224377,133.19,133.18,125.81437547]
[1765237369570,5.66102249,133.19,133.18,125.81437547]
[1765237369771,5.66102249,133.19,133.18,189.65437547]
[1765237372574,2.249e-05,133.19,133.18,189.65437547]
[1765237377479,0.0568674,133.2,133.18,189.65437547]
[1765237378071,0.0568674,133.2,133.18,191.34695142]
[1765237379874,0.0568674,133.2,133.18,70.65437547]
[1765237380077,0.0568674,133.2,133.19,1.69257595]
[1765237384568,5.68660801,133.2,133.19,1.69257595]
[1765237386274,5.68660801,133.2,133.19,120.69257595]
[1765237387278,8.01e-06,133.2,133.19,120.69257595]
[1765237394682,8.01e-06,133.2,133.19,119.0]
[1765237397880,6.98052093,133.24,133.19,119.0]
[1765237398087,10.18052093,133.24,133.2,63.82]
[1765237398286,3.2,133.24,133.2,63.82]
[1765237398887,3.2,133.24,133.21,0.0493571]
[1765237399087,3.2,133.24,133.22,63.82]
[1765237405390,10.20052093,133.26,133.22,182.82]
[1765237405789,3.22,133.25,133.22,182.82]
[1765237406093,3.22,133.25,133.23,6.7545]
[1765237408695,3.22,133.26,133.23,6.7545]
[1765237408893,3.22,133.26,133.23,6.80834075]
[1765237409793,5.59244689,133.25,133.23,6.80834075]
[1765237410094,5.59244689,133.24,133.23,125.80834075]
[1765237410294,5.59244689,133.24,133.23,189.62834075]
[1765237415694,8.81244689,133.24,133.23,182.87384075]
[1765237415884,8.81244689,133.24,133.23,63.87384075]
[1765237416087,8.81244689,133.24,133.23,0.05384075]
[1765237416985,3.22,133.23,133.18,119.0]
[1765237417198,3.22,133.21,133.18,119.0]
[1765237417400,3.22,133.19,133.17,63.82]
[1765237417698,8.81244689,133.18,133.17,63.82]
[1765237422194,8.81244689,133.18,133.16,0.05521518]
[1765237422195,3.22,133.17,133.16,0.05521518]
[1765237422594,8.80486818,133.17,133.16,0.05521518]
[1765237430406,3.22,133.17,133.16,0.05521518]
[1765237432103,0.05311991,133.19,133.16,2.6988227]
[1765237432297,0.05311991,133.19,133.17,63.84]
[1765237433513,0.05311991,133.19,133.17,70.5975]
[1765237436616,0.05311991,133.19,133.17,189.5975]
[1765237443321,3.33311991,133.19,133.17,182.84]
[1765237443524,3.33311991,133.19,133.17,63.84]
[1765237443725,8.85068765,133.18,133.17,63.84]
[1765237444626,3.28,133.18,133.17,63.84]
[1765237455340,8.85847881,133.18,133.17,63.84]
[1765237456137,8.85863604,133.18,133.17,63.84]
[1765237458346,5.57863604,133.18,133.17,63.84]
[1765237470849,8.77863604,133.18,133.17,63.84]
[1765237474256,5.57863604,133.18,133.17,63.84]
[1765237475451,5.57863604,133.18,133.17,182.84]
[1765237475651,5.57863604,133.18,133.17,184.53306389]
[1765237477458,5.57863604,133.18,133.17,182.84]
[1765237481157,5.57863604,133.18,133.17,63.84]
[1765237483370,3.2,133.17,133.16,119.05521518]
[1765237483574,8.77863604,133.17,133.16,182.89521518]
[1765237483865,8.77863604,133.17,133.16,63.89521518]
[1765237485664,5.57863604,133.17,133.16,63.89521518]
[1765237495874,15.7783259,133.17,133.16,63.89521518]
[1765237496080,21.07286822,133.17,133.16,63.89521518]
[1765237496769,14.11317836,133.17,133.16,63.89521518]
[1765237497772,10.87317836,133.17,133.16,63.89521518]
[1765237497968,5.57863604,133.17,133.16,63.89521518]
[1765237498164,10.87202037,133.17,133.16,63.89521518]
[1765237500976,5.57863604,133.17,133.16,63.89521518]
[1765237503287,5.57863604,133.17,133.16,0.05521518]
[1765237503478,8.76863604,133.17,133.16,63.89521518]
[1765237503983,14.05861269,133.17,133.16,63.89521518]
[1765237504171,8.76863604,133.17,133.16,63.89521518]
[1765237504372,14.05839132,133.17,133.16,63.89521518]
[1765237504771,3.19,133.16,133.11,1.69306389]
[1765237504973,3.19,133.14,133.12,63.84]
[1765237505173,5.57863604,133.13,133.12,63.84]
[1765237505375,6.9802684,133.17,133.12,65.53306389]
[1765237505579,5.59798165,133.16,133.12,63.84]
[1765237505781,5.6503659,133.15,133.13,0.05655843]
[1765237505977,5.59798165,133.14,133.13,0.05655843]
[1765237506182,5.59798165,133.14,133.13,119.05655843]
[1765237509188,8.78798165,133.14,133.13,0.05655843]
[1765237509588,5.59798165,133.14,133.13,119.05655843]
[1765237510593,0.05238425,133.15,133.14,6.7592]
[1765237510782,6.9802684,133.19,133.14,225.83416389]
[1765237510980,6.9802684,133.2,133.17,1.69306389]
[1765237511588,10.1702684,133.2,133.17,1.69306389]
[1765237511894,10.22065127,133.2,133.17,1.74310349]
[1765237512394,10.22065127,133.2,133.17,8.50060349]
[1765237512694,3.24038287,133.2,133.17,8.50060349]
[1765237514099,0.05038287,133.2,133.17,8.50060349]
[1765237516801,4.16943532,133.22,133.18,70.597]
[1765237517000,4.16943532,133.24,133.21,1.69306389]
[1765237517301,3.19,133.26,133.23,1.69306389]
[1765237517501,3.19,133.26,133.21,65.53306389]
[1765237517990,3.19,133.26,133.22,0.0478246]
[1765237518185,3.19,133.24,133.22,0.0478246]
[1765237519789,3.19,133.24,133.18,6.7571]
[1765237519790,3.19,133.24,133.18,63.84]
[1765237520803,0.049549,133.22,133.2,0.05305836]
[1765237522296,3.199549,133.22,133.2,0.05305836]
[1765237523701,8.69526609,133.21,133.2,0.05305836]
[1765237528597,5.54526609,133.21,133.2,0.05305836]
[1765237528801,3.199549,133.22,133.2,0.05305836]
[1765237529106,5.48435883,133.21,133.2,0.05305836]
[1765237529292,3.199549,133.22,133.2,0.05305836]
[1765237535122,0.049549,133.22,133.2,0.05305836]
[1765237535523,0.049549,133.22,133.2,6.80895836]
[1765237535728,0.049549,133.22,133.21,63.84]
[1765237538819,0.049549,133.22,133.21,182.84]
[1765237543729,0.049549,133.22,133.21,185.48383513]
[1765237543932,5.48138218,133.26,133.22,6.7549]
[1765237544122,3.15,133.27,133.22,125.7549]
[1765237544317,3.15,133.26,133.22,125.7549]
[1765237544931,3.15,133.26,133.23,0.05635349]
[1765237545129,3.15,133.26,133.24,63.82]
[1765237560440,5.49125657,133.25,133.24,63.82]
[1765237566641,3.15,133.26,133.24,70.5741]
[1765237567543,3.15,133.26,133.24,63.82]
[1765237567746,3.33,133.24,133.23,119.05635349]
[1765237567941,3.33,133.24,133.21,63.82]
[1765237567942,3.33,133.23,133.21,63.82]
[1765237568144,8.82026477,133.22,133.21,63.82]
[1765237568343,8.82026477,133.22,133.19,63.82]
[1765237568543,3.33,133.2,133.16,2.64383513]
[1765237568743,5.70552381,133.19,133.17,63.82]
[1765237568943,0.05245185,133.19,133.17,63.87493166]
[1765237569147,3.38245185,133.19,133.17,63.87493166]
[1765237569348,0.05245185,133.19,133.17,63.87493166]
[1765237569647,0.05245185,133.19,133.18,6.757]
[1765237569847,5.75575744,133.19,133.18,6.757]
[1765237571436,9.08575744,133.19,133.18,6.757]
[1765237577452,5.75575744,133.19,133.18,6.757]
[1765237577656,0.05245185,133.19,133.18,6.757]
[1765237578756,0.05245185,133.19,133.18,8.44895214]
[1765237579255,3.33,133.23,133.21,6.7555]
[1765237579456,5.69986837,133.22,133.21,6.7555]
[1765237580453,9.08986837,133.22,133.21,6.7555]
[1765237584363,5.69986837,133.22,133.21,6.7555]
[1765237585063,5.69986837,133.22,133.21,125.7555]
[1765237585264,10.3485614,133.27,133.23,6.7544]
[1765237585563,10.3485614,133.27,133.24,0.05387981]
[1765237586359,3.39,133.26,133.24,0.05387981]
[1765237588059,6.9585614,133.28,133.24,6.80777981]
[1765237588259,3.39,133.27,133.24,6.80777981]
[1765237593963,3.39,133.27,133.24,0.05387981]
[1765237597163,5.69506808,133.26,133.24,0.05387981]
[1765237597470,5.69506808,133.25,133.24,0.05387981]
[1765237599073,9.08506808,133.25,133.24,0.05387981]
[1765237607483,3.39,133.24,133.2,63.82]
[1765237607780,3.39,133.22,133.2,63.82]
[1765237608372,3.44380619,133.22,133.2,63.87621913]
[1765237610079,5.69714082,133.21,133.2,63.87621913]
[1765237610284,8.90714082,133.21,133.2,63.87621913]
[1765237612983,8.90714082,133.21,133.2,0.05621913]
[1765237614781,5.69714082,133.21,133.2,0.05621913]
[1765237615382,5.69714082,133.21,133.2,63.87621913]
[1765237620802,5.70094359,133.21,133.2,182.87621913]
[1765237622699,5.70094359,133.21,133.2,184.56817127]
[1765237624207,0.05380619,133.22,133.2,191.32407127]
[1765237631120,3.41380619,133.22,133.2,191.32407127]
[1765237634818,5.7054073,133.21,133.2,191.32407127]
[1765237636017,6.96894479,133.26,133.22,6.7548]
[1765237636222,10.32894479,133.27,133.23,65.51195214]
[1765237637023,10.32894479,133.27,133.24,0.05215059]
[1765237639421,6.96894479,133.28,133.25,1.69195214]
[1765237639623,10.14894479,133.27,133.24,0.05215059]
[1765237639930,3.18,133.26,133.24,0.05215059]
[1765237645925,3.18,133.25,133.2,6.7558]
[1765237646125,3.18,133.25,133.19,119.0]
[1765237646126,3.18,133.23,133.19,119.0]
[1765237646519,3.18,133.23,133.21,6.7555]
[1765237646929,3.18,133.25,133.21,6.7555]
[1765237647126,0.04757663,133.24,133.22,0.05655686]
[1765237648037,5.66755201,133.23,133.22,0.05655686]
[1765237649022,8.84755201,133.23,133.22,0.05655686]
[1765237661744,3.18,133.22,133.16,63.82]
[1765237661941,3.18,133.2,133.16,63.82]
[1765237662141,5.66755201,133.21,133.16,63.82]
[1765237662142,3.18,133.18,133.16,63.82]
[1765237662341,3.18,133.16,133.12,105.1562]
[1765237662541,3.18,133.14,133.12,63.82]
[1765237662740,3.18,133.14,133.13,0.05666286]
[1765237663436,3.23520314,133.15,133.13,6.81616286]
[1765237668349,3.23520314,133.15,133.13,125.81616286]
[1765237673049,0.05520314,133.15,133.13,125.81616286]
[1765237673444,3.38520314,133.15,133.13,125.81616286]
[1765237674751,0.05520314,133.15,133.13,125.81616286]
[1765237675151,3.38520314,133.15,133.13,0.05666286]
[1765237676047,0.05520314,133.15,133.13,6.81606286]
[1765237676249,0.05520314,133.15,133.14,63.84]
[1765237680155,0.05520314,133.15,133.14,182.84]
[1765237680656,0.05520314,133.15,133.14,185.48255677]
[1765237681846,3.12520314,133.15,133.14,182.84]
[1765237682554,3.12520314,133.15,133.13,0.05666286]
[1765237684156,9.88410314,133.15,133.13,0.05666286]
[1765237684458,3.07,133.14,133.13,0.05666286]
[1765237687366,3.07,133.14,133.09,63.84]
[1765237688051,3.07,133.13,133.09,63.84]
[1765237688460,3.07,133.11,133.1,0.04903608]
[1765237689155,0.05226363,133.12,133.1,0.04903608]
[1765237689348,0.05226363,133.12,133.11,2.64255677]
[1765237689546,8.7339082,133.16,133.11,2.64255677]
[1765237689747,3.07,133.19,133.13,9.40195677]
[1765237689948,8.73660043,133.18,133.13,73.26195677]
[1765237690258,8.73660043,133.17,133.13,73.26195677]
[1765237690459,0.05472977,133.16,133.14,0.05360803]
[1765237690667,0.05472977,133.16,133.15,2.64255677]
[1765237693160,3.07,133.2,133.15,2.64255677]
[1765237693365,5.67305483,133.19,133.18,2.64255677]
[1765237694458,8.74305483,133.19,133.18,2.64255677]
[1765237694658,3.07,133.19,133.18,2.64255677]
[1765237697863,3.12519065,133.2,133.18,2.64255677]
[1765237699764,3.12519065,133.2,133.18,9.39945677]
[1765237701263,3.12519065,133.2,133.17,63.9160763]
[1765237701569,3.23,133.18,133.14,2.64255677]
[1765237701765,3.23,133.16,133.14,2.64255677]
[1765237702368,3.23,133.14,133.12,9.40245677]
[1765237702560,3.28302062,133.14,133.12,2.69776614]
[1765237702763,3.28302062,133.14,133.13,1.69400044]
[1765237703571,8.96458871,133.14,133.13,1.69400044]
[1765237705870,0.05302062,133.14,133.13,1.69400044]
[1765237706068,3.23,133.18,133.13,1.69400044]
[1765237706261,8.91523878,133.17,133.16,1.69400044]
[1765237710984,5.68523878,133.17,133.16,1.69400044]
[1765237712185,0.05427901,133.18,133.16,1.69400044]
[1765237712882,3.28427901,133.18,133.16,1.69400044]
[1765237715098,3.28427901,133.18,133.16,8.45200044]
[1765237717305,0.05427901,133.18,133.16,8.45200044]
[1765237720211,0.05427901,133.18,133.16,127.45200044]
[1765237723914,3.28427901,133.18,133.16,127.45200044]
[1765237724315,0.05427901,133.18,133.16,127.45200044]
[1765237725311,3.23,133.22,133.19,6.7565]
[1765237725515,5.68126331,133.21,133.2,63.84]
[1765237726514,5.68126331,133.21,133.2,65.53400044]
[1765237730707,5.68126331,133.21,133.2,184.53400044]
[1765237740016,10.31437909,133.25,133.21,6.7554]
[1765237740216,9.05182746,133.24,133.22,63.89415717]
[1765237740416,9.05182746,133.23,133.22,63.89415717]
[1765237740623,5.69182746,133.23,133.22,63.89415717]
[1765237740923,8.91182746,133.23,133.22,63.89415717]
[1765237741225,8.91182746,133.23,133.22,0.05415717]
[1765237746525,5.69182746,133.23,133.22,0.05415717]
[1765237747721,8.91182746,133.23,133.22,0.05415717]
[1765237748132,5.69182746,133.23,133.22,0.05415717]
[1765237748330,8.91182746,133.23,133.22,0.05415717]
[1765237748730,5.69182746,133.23,133.22,0.05415717]
[1765237748920,3.22,133.26,133.22,6.80895717]
[1765237749125,3.22,133.24,133.22,6.80895717]
[1765237749325,3.22,133.23,133.22,6.80895717]
[1765237750232,8.90763437,133.23,133.22,6.80895717]
[1765237752736,8.90763437,133.23,133.22,0.05415717]
[1765237756243,8.91134778,133.23,133.22,0.05415717]
[1765237756947,8.91134778,133.23,133.2,63.84]
[1765237756948,3.22,133.22,133.2,63.84]
[1765237757238,8.91134778,133.21,133.2,63.84]
[1765237767848,8.91134778,133.21,133.19,0.04793628]
[1765237768052,5.69134778,133.2,133.19,0.04793628]
[1765237770052,9.07134778,133.2,133.19,0.04793628]
[1765237770446,5.69134778,133.2,133.19,0.04793628]
[1765237770853,9.07134778,133.2,133.19,0.04793628]
[1765237783760,3.25306875,133.2,133.19,0.04793628]
[1765237784061,0.05536734,133.21,133.19,0.04793628]
[1765237784262,0.05536734,133.21,133.2,63.84]
[1765237789553,10.31594315,133.25,133.2,185.48454549]
[1765237789758,10.31594315,133.27,133.2,185.48454549]
[1765237789964,3.35,133.27,133.2,185.48454549]
[1765237790663,3.35,133.27,133.22,0.04768931]
[1765237790865,3.35,133.27,133.23,63.84]
[1765237793375,3.35,133.26,133.23,63.84]
[1765237794572,3.35,133.25,133.23,63.84]
[1765237795572,3.35,133.25,133.22,0.04768931]
[1765237795767,5.66636473,133.24,133.22,0.04768931]
[1765237795973,9.01636473,133.23,133.22,0.04768931]
[1765237797659,5.66636473,133.23,133.22,0.04768931]
[1765237802371,3.35,133.25,133.22,0.04768931]
[1765237802568,8.78170523,133.24,133.22,0.04768931]
[1765237802772,3.12,133.24,133.22,0.04768931]
[1765237805679,8.77679754,133.23,133.22,0.04768931]
[1765237807983,3.12,133.25,133.22,0.04768931]
[1765237808286,3.12,133.25,133.23,63.82]
[1765237809574,3.12,133.25,133.23,70.5745]
[1765237811880,3.12,133.25,133.23,63.82]
[1765237813882,3.12,133.25,133.23,182.82]
[1765237819684,3.12,133.25,133.23,63.82]
[1765237822390,5.64786764,133.24,133.23,63.82]
[1765237823791,8.78786764,133.24,133.23,63.82]
[1765237835197,5.64786764,133.24,133.23,63.82]
[1765237835797,5.64786764,133.24,133.23,65.5114926]
[1765237837493,5.64786764,133.24,133.23,184.5114926]
[1765237869921,5.64786764,133.24,133.23,182.82]
[1765237874324,3.15799299,133.24,133.23,182.82]
[1765237874625,9.19077407,133.3,133.23,182.82]
[1765237874626,6.96594315,133.28,133.23,182.82]
[1765237874820,6.96594315,133.28,133.26,1.6914926]
[1765237875017,6.96594315,133.28,133.27,63.82]
[1765237875217,12.12348832,133.28,133.27,63.82]
[1765237875417,3.2,133.27,133.25,63.8]
[1765237878720,3.11,133.26,133.25,63.8]
[1765237879819,23.48662119,133.26,133.24,0.05080089]
[1765237880018,15.23297661,133.25,133.24,0.05080089]
[1765237882128,8.26703346,133.25,133.24,0.05080089]
[1765237882334,3.11,133.25,133.24,0.05080089]
[1765237882832,8.28602376,133.25,133.24,0.05080089]
[1765237885533,15.25196691,133.25,133.24,0.05080089]
[1765237886236,8.28506838,133.25,133.24,0.05080089]
[1765237886426,20.91205886,133.25,133.24,0.05080089]
[1765237886825,20.93865497,133.25,133.24,0.05080089]
[1765237887934,8.77104733,133.25,133.24,0.05080089]
[1765237891038,5.66104733,133.25,133.24,0.05080089]
[1765237893128,8.77104733,133.25,133.24,0.05080089]
[1765237893529,5.66104733,133.25,133.24,0.05080089]
[1765237893741,5.66104733,133.25,133.24,119.05080089]
[1765237894340,8.77104733,133.25,133.24,119.05080089]
[1765237895736,13.93401988,133.25,133.24,0.05080089]
[1765237904347,8.77104733,133.25,133.24,0.05080089]
[1765237906751,5.66104733,133.25,133.24,119.05080089]
[1765237916665,5.66104733,133.25,133.24,182.87080089]
[1765237917058,8.79104733,133.25,133.24,182.87080089]
[1765237917460,5.66104733,133.25,133.24,182.87080089]
[1765237919167,8.79104733,133.25,133.24,0.05080089]
[1765237919359,14.02600829,133.25,133.24,0.05080089]
[1765237919558,21.01854755,133.25,133.24,0.05080089]
[1765237919761,3.13,133.24,133.2,63.82]
[1765237919965,3.13,133.22,133.2,63.82]
[1765237920164,5.65541467,133.21,133.2,63.82]
[1765237920761,8.78541467,133.21,133.2,63.82]
[1765237920962,5.65541467,133.21,133.17,105.1179]
[1765237921170,5.65541467,133.2,133.18,2.64304553]
[1765237921371,3.06,133.23,133.19,63.82]
[1765237921572,5.6581896,133.22,133.19,63.82]
[1765237921776,5.6581896,133.21,133.19,63.82]
[1765237922074,0.05658158,133.21,133.19,63.87619417]
[1765237922464,0.05658158,133.21,133.19,70.63259417]
[1765237929488,0.05658158,133.21,133.19,189.63259417]
[1765237934492,3.11658158,133.21,133.19,189.63259417]
[1765237934693,5.65651854,133.2,133.19,189.63259417]
[1765237936797,8.71651854,133.2,133.19,189.63259417]
[1765237937697,8.71651854,133.2,133.19,70.63259417]
[1765237937895,8.71651854,133.2,133.19,63.87619417]
[1765237939302,8.71651854,133.2,133.19,61.40617713]
[1765237939705,8.71651854,133.2,133.19,0.05619417]
[1765237946911,8.69736049,133.2,133.19,0.05619417]
[1765237954719,8.75736049,133.2,133.19,0.05619417]
[1765237962118,3.12,133.19,133.16,63.82]
[1765237962310,3.12,133.17,133.16,63.82]
[1765237962515,3.12,133.16,133.11,170.69631323]
[1765237962913,3.12,133.16,133.13,6.7596]
[1765237963110,3.1680661,133.16,133.13,6.80708153]
[1765237965618,3.1680661,133.16,133.13,8.50009476]
[1765237966219,0.0480661,133.16,133.15,1.69301323]
[1765237966616,0.0480661,133.16,133.15,65.53301323]
[1765237971131,0.0480661,133.16,133.15,184.53301323]
[1765237976336,3.18,133.19,133.16,6.7581]
[1765237976536,5.64887371,133.18,133.16,125.7581]
[1765237976737,3.18,133.19,133.16,125.7581]
[1765237976930,5.64887371,133.18,133.16,125.7581]
[1765237977129,3.18,133.19,133.16,125.7581]
[1765237977325,3.18,133.17,133.16,125.8147053]
[1765237977531,8.81937368,133.17,133.16,125.8147053]
[1765237977937,5.63937368,133.17,133.16,125.8147053]
[1765237978133,8.81937368,133.17,133.16,119.0566053]
[1765237980039,8.81937368,133.17,133.16,0.0566053]
[1765237980236,5.63937368,133.17,133.16,0.0566053]
[1765237982044,8.81937368,133.17,133.16,0.0566053]
[1765237985940,8.81937368,133.17,133.16,119.0566053]
[1765237986137,5.63937368,133.17,133.16,119.0566053]
[1765237986937,0.05091433,133.19,133.17,6.7577]
[1765237987141,0.05091433,133.19,133.18,65.53301323]
[1765237994045,0.05091433,133.19,133.18,63.84]
[1765237997159,3.26091433,133.19,133.18,63.84]
[1765237997767,3.26091433,133.19,133.16,0.0566053]
[1765237998067,3.26091433,133.19,133.16,63.8966053]
[1765238003363,3.26091433,133.19,133.08,105.187]
[1765238003364,3.33,133.16,133.1,1.69301323]
[1765238003564,3.33,133.14,133.1,65.53301323]
[1765238004364,5.66044656,133.13,133.11,0.04969178]
[1765238004570,3.37824594,133.13,133.11,0.04969178]
[1765238006074,0.04824594,133.13,133.11,8.50340501]
[1765238007988,0.04824594,133.13,133.11,6.81039178]
[1765238008272,3.37824594,133.13,133.11,6.81039178]
[1765238009377,0.04824594,133.13,133.11,6.81039178]
[1765238015779,0.04824594,133.13,133.11,125.81039178]
[1765238019085,3.37824594,133.13,133.11,125.81039178]
[1765238019484,0.04824594,133.13,133.11,125.81039178]
[1765238026492,0.04824594,133.13,133.12,63.86]
[1765238027491,0.04824594,133.13,133.12,182.86]
[1765238030796,3.17,133.19,133.12,288.0167]
[1765238031094,3.17,133.17,133.13,2.64710474]
[1765238031294,3.17,133.17,133.14,63.86]
[1765238031795,3.22738708,133.17,133.14,63.90950584]
[1765238032390,3.22738708,133.17,133.15,6.7586]
[1765238032590,0.05738708,133.17,133.15,6.7586]
[1765238032992,0.05738708,133.17,133.15,125.7586]
[1765238034183,0.05738708,133.17,133.15,128.40570474]
[1765238035095,0.05738708,133.17,133.16,63.86]
[1765238036492,0.05738708,133.17,133.16,182.86]
[1765238037292,3.17,133.21,133.16,287.9823]
[1765238037493,5.62080033,133.2,133.16,287.9823]
[1765238037804,3.17,133.21,133.16,287.9823]
[1765238037994,5.62080261,133.2,133.16,287.9823]
[1765238038300,3.17,133.21,133.16,287.9823]
[1765238038501,5.67449427,133.2,133.17,0.0541168]
[1765238038800,0.05213006,133.2,133.18,63.86]
[1765238039591,0.05213006,133.2,133.18,70.6168]
[1765238040389,6.94806159,133.24,133.2,6.7558]
[1765238040390,3.17,133.23,133.2,6.7558]
[1765238040598,3.17,133.24,133.21,63.84]
[1765238041500,3.19121412,133.24,133.21,168.97904387]